[Event "*** Titled Tuesday Blitz"]
[Site "Chess.com"]
[Date "2020.04.14"]
[Round "7"]
[White "nfds"]
[Black "SlavenPastar"]
[Result "0-1"]
[WhiteElo "2566"]
[BlackElo "2425"]
[TimeControl "180+1"]
[EndTime "11:15:30 PDT"]
[Termination "SlavenPastar won by resignation"]

1. d4 {[%clk 0:02:56.9]} 1... b6 {[%clk 0:03:00.2]} 2. Nf3 {[%clk 0:02:53.4]}
2... Bb7 {[%clk 0:03:00.5]} 3. c4 {[%clk 0:02:48.3]} 3... f5 {[%clk 0:02:59.6]}
4. Nc3 {[%clk 0:02:47]} 4... Nf6 {[%clk 0:02:59.9]} 5. Bf4 {[%clk 0:02:43.7]}
5... e6 {[%clk 0:02:59.8]} 6. e3 {[%clk 0:02:43.3]} 6... Be7 {[%clk 0:03:00.3]}
7. Bd3 {[%clk 0:02:42.6]} 7... O-O {[%clk 0:03:00.4]} 8. O-O {[%clk 0:02:42.4]}
8... a5 {[%clk 0:02:59.6]} 9. d5 {[%clk 0:02:32.9]} 9... Na6 {[%clk 0:02:55.2]}
10. Bc2 {[%clk 0:02:26.2]} 10... Nc5 {[%clk 0:02:52.8]} 11. Nb5 {[%clk 0:02:22]}
11... Rc8 {[%clk 0:02:46.2]} 12. Nxc7 {[%clk 0:02:14.1]} 12... Nh5 {[%clk
0:02:25]} 13. Nb5 {[%clk 0:01:57.8]} 13... Nxf4 {[%clk 0:02:11.7]} 14. exf4
{[%clk 0:01:58.7]} 14... Ne4 {[%clk 0:01:59.1]} 15. Bb3 {[%clk 0:01:27.2]} 15...
Bf6 {[%clk 0:01:57]} 16. Qe2 {[%clk 0:01:10.7]} 16... Kh8 {[%clk 0:01:53]} 17.
Rad1 {[%clk 0:01:04.5]} 17... Qe7 {[%clk 0:01:47.6]} 18. Nd2 {[%clk 0:00:57.8]}
18... Nc5 {[%clk 0:01:45.3]} 19. Nb1 {[%clk 0:00:50]} 19... Ba6 {[%clk
0:01:39.9]} 20. N1c3 {[%clk 0:00:45.7]} 20... Rfd8 {[%clk 0:01:22]} 21. Rfe1
{[%clk 0:00:42.6]} 21... Qf7 {[%clk 0:01:14.4]} 22. Na4 {[%clk 0:00:40.1]} 22...
Nxa4 {[%clk 0:01:08]} 23. Bxa4 {[%clk 0:00:37.9]} 23... Bxb5 {[%clk 0:01:01.2]}
24. Bxb5 {[%clk 0:00:36]} 24... exd5 {[%clk 0:01:00.7]} 25. cxd5 {[%clk
0:00:31.1]} 25... d6 {[%clk 0:00:58.1]} 26. Bc6 {[%clk 0:00:28.4]} 26... Rc7
{[%clk 0:00:47.1]} 27. Qe6 {[%clk 0:00:25.9]} 27... Qxe6 {[%clk 0:00:41.7]} 28.
Rxe6 {[%clk 0:00:25.6]} 28... Kg8 {[%clk 0:00:38.1]} 29. b3 {[%clk 0:00:23.6]}
29... Kf8 {[%clk 0:00:38.1]} 30. Rde1 {[%clk 0:00:21.9]} 30... Re7 {[%clk
0:00:33.1]} 31. g3 {[%clk 0:00:18]} 31... Rxe6 {[%clk 0:00:31.6]} 32. Rxe6
{[%clk 0:00:17.4]} 32... Bd4 {[%clk 0:00:27.8]} 33. Kg2 {[%clk 0:00:15.4]} 33...
Bc5 {[%clk 0:00:28.3]} 34. h3 {[%clk 0:00:12.7]} 34... Rc8 {[%clk 0:00:28.3]}
35. g4 {[%clk 0:00:10.4]} 35... fxg4 {[%clk 0:00:28.2]} 36. hxg4 {[%clk
0:00:10.5]} 36... Rc7 {[%clk 0:00:27.4]} 37. Kf3 {[%clk 0:00:10.5]} 37... Re7
{[%clk 0:00:27.3]} 38. Ke4 {[%clk 0:00:10.6]} 38... Rxe6+ {[%clk 0:00:24.8]} 39.
dxe6 {[%clk 0:00:10.4]} 39... Bxf2 {[%clk 0:00:24.4]} 40. f5 {[%clk 0:00:07.8]}
40... Bh4 {[%clk 0:00:20.8]} 41. Kd5 {[%clk 0:00:07.2]} 41... Ke7 {[%clk
0:00:21.1]} 42. Bb5 {[%clk 0:00:06.7]} 42... h6 {[%clk 0:00:19.1]} 43. Be2
{[%clk 0:00:04.5]} 43... Bf2 {[%clk 0:00:19]} 44. Kc6 {[%clk 0:00:04.3]} 44...
Bc5 {[%clk 0:00:19]} 45. Bf3 {[%clk 0:00:04.3]} 45... Be3 {[%clk 0:00:18.5]} 46.
Kd5 {[%clk 0:00:04]} 46... Bf2 {[%clk 0:00:17.7]} 47. Be4 {[%clk 0:00:03.8]}
47... Bg1 {[%clk 0:00:16.4]} 48. Bf3 {[%clk 0:00:04.7]} 48... Bc5 {[%clk
0:00:16.2]} 49. Bg2 {[%clk 0:00:05.6]} 49... Kf6 {[%clk 0:00:16.4]} 50. Bf3
{[%clk 0:00:06.5]} 50... g6 {[%clk 0:00:11.9]} 51. Kc6 {[%clk 0:00:05.3]} 51...
gxf5 {[%clk 0:00:08.7]} 52. Kd7 {[%clk 0:00:03.7]} 52... d5 {[%clk 0:00:08.9]}
53. gxf5 {[%clk 0:00:02.9]} 53... d4 {[%clk 0:00:06.1]} 54. Be4 {[%clk
0:00:01.8]} 54... h5 {[%clk 0:00:05.9]} 55. Kc6 {[%clk 0:00:01.7]} 55... h4
{[%clk 0:00:05.4]} 56. Kd5 {[%clk 0:00:01.7]} 56... h3 {[%clk 0:00:05.3]} 57.
Kc4 {[%clk 0:00:02.5]} 57... h2 {[%clk 0:00:05.3]} 58. Kd3 {[%clk 0:00:02.7]}
58... Ke5 {[%clk 0:00:05.5]} 59. Bh1 {[%clk 0:00:02.4]} 59... Kxf5 {[%clk
0:00:05.3]} 60. e7 {[%clk 0:00:02.6]} 60... Bxe7 {[%clk 0:00:05]} 61. Kxd4
{[%clk 0:00:03.5]} 61... Bc5+ {[%clk 0:00:05.2]} 62. Kd5 {[%clk 0:00:03.5]}
62... Kg4 {[%clk 0:00:05.5]} 63. Ke4 {[%clk 0:00:03.5]} 63... Kg3 {[%clk
0:00:05.5]} 64. Kd5 {[%clk 0:00:02.1]} 64... Kf2 {[%clk 0:00:05.8]} 65. Kc4
{[%clk 0:00:03]} 65... Kg1 {[%clk 0:00:06.1]} 66. Be4 {[%clk 0:00:03.7]} 66...
h1=Q {[%clk 0:00:06.6]} 67. Bxh1 {[%clk 0:00:04.3]} 67... Kxh1 {[%clk
0:00:07.5]} 68. Kb5 {[%clk 0:00:03.7]} 68... Kg2 {[%clk 0:00:07.8]} 0-1

[Event "*** Titled Tuesday Blitz"]
[Site "Chess.com"]
[Date "2020.04.14"]
[Round "7"]
[White "Zajdanek"]
[Black "Hangar-18"]
[Result "0-1"]
[WhiteElo "2350"]
[BlackElo "2243"]
[TimeControl "180+1"]
[EndTime "11:15:30 PDT"]
[Termination "Hangar-18 won on time"]

1. e4 {[%clk 0:03:00.7]} 1... d5 {[%clk 0:02:57.8]} 2. exd5 {[%clk 0:03:00.7]}
2... Qxd5 {[%clk 0:02:58.7]} 3. Nc3 {[%clk 0:03:00.9]} 3... Qa5 {[%clk
0:02:55.9]} 4. Bc4 {[%clk 0:03:00.1]} 4... Nf6 {[%clk 0:02:39.6]} 5. d3 {[%clk
0:02:59.7]} 5... c6 {[%clk 0:02:38]} 6. Nf3 {[%clk 0:02:58.8]} 6... g6 {[%clk
0:02:33.5]} 7. Bd2 {[%clk 0:02:57]} 7... Bg7 {[%clk 0:02:29.5]} 8. h3 {[%clk
0:02:44.1]} 8... Qc7 {[%clk 0:02:22.9]} 9. Qe2 {[%clk 0:02:40.7]} 9... b5 {[%clk
0:02:15.4]} 10. Bb3 {[%clk 0:02:40]} 10... a5 {[%clk 0:02:13.4]} 11. a4 {[%clk
0:02:40]} 11... b4 {[%clk 0:02:10.8]} 12. Ne4 {[%clk 0:02:40.1]} 12... O-O
{[%clk 0:02:10.6]} 13. Ng3 {[%clk 0:02:25.4]} 13... Nbd7 {[%clk 0:02:04.2]} 14.
d4 {[%clk 0:02:22.8]} 14... Nb6 {[%clk 0:01:52.7]} 15. Qe5 {[%clk 0:02:15.9]}
15... Qd8 {[%clk 0:01:46.3]} 16. O-O-O {[%clk 0:02:06.6]} 16... Ba6 {[%clk
0:01:20.8]} 17. Rhe1 {[%clk 0:02:05.8]} 17... Nfd5 {[%clk 0:01:20.6]} 18. Qe4
{[%clk 0:01:59.1]} 18... Rc8 {[%clk 0:00:47]} 19. Qh4 {[%clk 0:01:57.2]} 19...
Nc4 {[%clk 0:00:34.9]} 20. Bh6 {[%clk 0:01:54.1]} 20... Qd6 {[%clk 0:00:30.4]}
21. Kb1 {[%clk 0:01:37]} 21... Rfe8 {[%clk 0:00:22.2]} 22. Bxg7 {[%clk
0:01:16.1]} 22... Kxg7 {[%clk 0:00:22.2]} 23. Ng5 {[%clk 0:01:16.5]} 23... h6
{[%clk 0:00:21.2]} 24. N5e4 {[%clk 0:01:11.9]} 24... Qf4 {[%clk 0:00:20.3]} 25.
Qg4 {[%clk 0:01:02.1]} 25... Qxg4 {[%clk 0:00:12.2]} 26. hxg4 {[%clk 0:01:02.2]}
26... Ncb6 {[%clk 0:00:12.4]} 27. Nc5 {[%clk 0:00:56.9]} 27... Bc4 {[%clk
0:00:12.9]} 28. Nge4 {[%clk 0:00:53.8]} 28... Bxb3 {[%clk 0:00:12.6]} 29. cxb3
{[%clk 0:00:53.9]} 29... Red8 {[%clk 0:00:12.6]} 30. g3 {[%clk 0:00:51.9]} 30...
Nf6 {[%clk 0:00:12.8]} 31. f3 {[%clk 0:00:46.7]} 31... Rc7 {[%clk 0:00:13.1]}
32. Kc1 {[%clk 0:00:30.6]} 32... Rd5 {[%clk 0:00:13.5]} 33. Nf2 {[%clk
0:00:25.5]} 33... Kf8 {[%clk 0:00:12.9]} 34. Re5 {[%clk 0:00:23.9]} 34... Nbd7
{[%clk 0:00:13]} 35. Nxd7+ {[%clk 0:00:18.3]} 35... Rcxd7 {[%clk 0:00:13.7]} 36.
Rxd5 {[%clk 0:00:17.2]} 36... Rxd5 {[%clk 0:00:14.6]} 37. Rd3 {[%clk 0:00:11.5]}
37... h5 {[%clk 0:00:14.9]} 38. Kd2 {[%clk 0:00:11.9]} 38... hxg4 {[%clk
0:00:14.9]} 39. fxg4 {[%clk 0:00:12.1]} 39... Ke8 {[%clk 0:00:15.2]} 40. Ke3
{[%clk 0:00:12.3]} 40... Kd7 {[%clk 0:00:14.7]} 41. Rd1 {[%clk 0:00:11.9]} 41...
Rg5 {[%clk 0:00:14.9]} 42. Kf3 {[%clk 0:00:10.6]} 42... Rd5 {[%clk 0:00:14.2]}
43. Ke3 {[%clk 0:00:10.4]} 43... Ne8 {[%clk 0:00:10.7]} 44. Rc1 {[%clk
0:00:09.7]} 44... Nd6 {[%clk 0:00:10.3]} 45. Nd3 {[%clk 0:00:07.3]} 45... Rg5
{[%clk 0:00:10.4]} 46. Ne5+ {[%clk 0:00:06]} 46... Ke6 {[%clk 0:00:09.6]} 47.
Rxc6 {[%clk 0:00:05.6]} 47... f6 {[%clk 0:00:09.8]} 48. Nc4 {[%clk 0:00:03]}
48... Rxg4 {[%clk 0:00:10.2]} 49. Nxa5 {[%clk 0:00:02.6]} 49... Rxg3+ {[%clk
0:00:09.9]} 50. Kf2 {[%clk 0:00:03.2]} 50... Rd3 {[%clk 0:00:09.7]} 0-1

[Event "*** Titled Tuesday Blitz"]
[Site "Chess.com"]
[Date "2020.04.14"]
[Round "7"]
[White "SamuelGhimpu2003"]
[Black "plumalka"]
[Result "0-1"]
[WhiteElo "2531"]
[BlackElo "2380"]
[TimeControl "180+1"]
[EndTime "11:15:31 PDT"]
[Termination "plumalka won on time"]

1. e4 {[%clk 0:02:59.2]} 1... c5 {[%clk 0:02:59.2]} 2. Nf3 {[%clk 0:02:57]} 2...
d6 {[%clk 0:02:57.6]} 3. d4 {[%clk 0:02:57.5]} 3... cxd4 {[%clk 0:02:56.9]} 4.
Nxd4 {[%clk 0:02:58.4]} 4... Nf6 {[%clk 0:02:57]} 5. Nc3 {[%clk 0:02:58.8]} 5...
Bd7 {[%clk 0:02:57.4]} 6. f4 {[%clk 0:02:50.7]} 6... Nc6 {[%clk 0:02:49.9]} 7.
Nf3 {[%clk 0:02:50.9]} 7... g6 {[%clk 0:02:47.4]} 8. Bd3 {[%clk 0:02:36.3]} 8...
Bg7 {[%clk 0:02:41.8]} 9. O-O {[%clk 0:02:36.3]} 9... Qb6+ {[%clk 0:02:32.5]}
10. Kh1 {[%clk 0:02:34.8]} 10... Ng4 {[%clk 0:02:32.6]} 11. Qe1 {[%clk
0:02:29.9]} 11... h5 {[%clk 0:02:31.7]} 12. Nd5 {[%clk 0:02:14.3]} 12... Qd8
{[%clk 0:02:23.7]} 13. Bd2 {[%clk 0:02:13.4]} 13... e6 {[%clk 0:02:20.6]} 14.
Bc3 {[%clk 0:02:00.3]} 14... Kf8 {[%clk 0:02:08.4]} 15. Ne3 {[%clk 0:01:53.9]}
15... Bxc3 {[%clk 0:02:03.4]} 16. Qxc3 {[%clk 0:01:52.8]} 16... Kg8 {[%clk
0:01:59.1]} 17. Rae1 {[%clk 0:01:50]} 17... Rc8 {[%clk 0:01:58.1]} 18. Qd2
{[%clk 0:01:45.3]} 18... Qf6 {[%clk 0:01:53.9]} 19. Ng5 {[%clk 0:01:27.6]} 19...
Nd4 {[%clk 0:01:42.4]} 20. e5 {[%clk 0:01:19.3]} 20... dxe5 {[%clk 0:01:37]} 21.
Nxg4 {[%clk 0:01:19.6]} 21... hxg4 {[%clk 0:01:34.8]} 22. fxe5 {[%clk
0:01:20.1]} 22... Qg7 {[%clk 0:01:24.5]} 23. Rxf7 {[%clk 0:01:02.6]} 23... Qh6
{[%clk 0:01:23.9]} 24. g3 {[%clk 0:01:02.8]} 24... Bc6+ {[%clk 0:01:23.2]} 25.
Be4 {[%clk 0:01:03.1]} 25... Bxe4+ {[%clk 0:01:11.1]} 26. Rxe4 {[%clk 0:01:04]}
26... Rxc2 {[%clk 0:01:10.9]} 27. Rxd4 {[%clk 0:00:30.2]} 27... Rc1+ {[%clk
0:01:08.7]} 28. Rf1 {[%clk 0:00:29.3]} 28... Rxf1+ {[%clk 0:01:06.5]} 29. Kg2
{[%clk 0:00:30.2]} 29... Qxh2+ {[%clk 0:01:05.8]} 30. Kxf1 {[%clk 0:00:31.1]}
30... Qh1+ {[%clk 0:01:05.4]} 31. Ke2 {[%clk 0:00:32]} 31... Rh2+ {[%clk
0:01:05.2]} 32. Ke3 {[%clk 0:00:32.9]} 32... Rxd2 {[%clk 0:01:03.1]} 33. Rxd2
{[%clk 0:00:33.8]} 33... Qe1+ {[%clk 0:01:02.6]} 34. Re2 {[%clk 0:00:32.7]}
34... Qxg3+ {[%clk 0:01:00.8]} 35. Kd4 {[%clk 0:00:32.9]} 35... Qf4+ {[%clk
0:00:57.9]} 36. Ne4 {[%clk 0:00:32.8]} 36... g3 {[%clk 0:00:58.3]} 37. Rg2
{[%clk 0:00:32.4]} 37... Qc1 {[%clk 0:00:52.8]} 38. Nxg3 {[%clk 0:00:25.7]}
38... Qd1+ {[%clk 0:00:50.2]} 39. Ke3 {[%clk 0:00:22.7]} 39... Qd5 {[%clk
0:00:49.6]} 40. Ne4 {[%clk 0:00:21]} 40... Kg7 {[%clk 0:00:46.3]} 41. Kf4 {[%clk
0:00:20.3]} 41... Qd3 {[%clk 0:00:42.4]} 42. Rd2 {[%clk 0:00:19.2]} 42... Qb5
{[%clk 0:00:40.8]} 43. b3 {[%clk 0:00:15.5]} 43... Qc6 {[%clk 0:00:39.6]} 44.
Ke3 {[%clk 0:00:10.1]} 44... a5 {[%clk 0:00:38.5]} 45. Rd6 {[%clk 0:00:09.3]}
45... Qc1+ {[%clk 0:00:37.1]} 46. Kd4 {[%clk 0:00:09.4]} 46... Qa1+ {[%clk
0:00:36.5]} 47. Nc3 {[%clk 0:00:08.2]} 47... Qg1+ {[%clk 0:00:35.4]} 48. Kc4
{[%clk 0:00:07.2]} 48... Qg4+ {[%clk 0:00:33.7]} 49. Rd4 {[%clk 0:00:04.9]}
49... Qf5 {[%clk 0:00:31.9]} 50. Re4 {[%clk 0:00:04.9]} 50... g5 {[%clk
0:00:31.5]} 51. Kd4 {[%clk 0:00:05.4]} 51... g4 {[%clk 0:00:31.7]} 52. Nd1
{[%clk 0:00:05.7]} 52... g3 {[%clk 0:00:29.7]} 53. Ne3 {[%clk 0:00:05.3]} 53...
Qf2 {[%clk 0:00:29.4]} 54. Rg4+ {[%clk 0:00:05.2]} 54... Kf7 {[%clk 0:00:26.8]}
55. Ke4 {[%clk 0:00:04.5]} 55... Ke7 {[%clk 0:00:25.9]} 56. Rf4 {[%clk
0:00:04.6]} 56... Qxa2 {[%clk 0:00:22.5]} 57. Rg4 {[%clk 0:00:04.9]} 57... Qxb3
{[%clk 0:00:21.4]} 58. Rxg3 {[%clk 0:00:05.3]} 58... Qb4+ {[%clk 0:00:21.3]} 59.
Kf3 {[%clk 0:00:05.4]} 59... a4 {[%clk 0:00:21.6]} 60. Rg7+ {[%clk 0:00:05.4]}
60... Kf8 {[%clk 0:00:21.4]} 61. Rc7 {[%clk 0:00:02.9]} 61... a3 {[%clk
0:00:21.3]} 62. Ng4 {[%clk 0:00:02.9]} 62... Qb3+ {[%clk 0:00:20.9]} 63. Kf4
{[%clk 0:00:02.6]} 63... Qb4+ {[%clk 0:00:21.1]} 64. Kg5 {[%clk 0:00:02.5]}
64... a2 {[%clk 0:00:20.5]} 65. Nf6 {[%clk 0:00:03.1]} 65... Qe7 {[%clk
0:00:19.9]} 66. Rc8+ {[%clk 0:00:02.3]} 66... Kf7 {[%clk 0:00:19.9]} 0-1

[Event "*** Titled Tuesday Blitz"]
[Site "Chess.com"]
[Date "2020.04.14"]
[Round "7"]
[White "Kimster98"]
[Black "afgano29"]
[Result "1-0"]
[WhiteElo "2551"]
[BlackElo "2686"]
[TimeControl "180+1"]
[EndTime "11:15:32 PDT"]
[Termination "Kimster98 won by resignation"]

1. d4 {[%clk 0:02:54.2]} 1... Nf6 {[%clk 0:02:59.7]} 2. Bf4 {[%clk 0:02:52.5]}
2... d6 {[%clk 0:02:59.4]} 3. Nc3 {[%clk 0:02:45.7]} 3... c6 {[%clk 0:02:55.7]}
4. Qd2 {[%clk 0:02:34.7]} 4... b5 {[%clk 0:02:52.9]} 5. a3 {[%clk 0:02:28.9]}
5... Nbd7 {[%clk 0:02:44.5]} 6. Nf3 {[%clk 0:02:24.1]} 6... a5 {[%clk 0:02:38]}
7. e4 {[%clk 0:02:21]} 7... Bb7 {[%clk 0:02:33.2]} 8. e5 {[%clk 0:02:10.9]} 8...
b4 {[%clk 0:02:18.7]} 9. exf6 {[%clk 0:01:55.7]} 9... bxc3 {[%clk 0:02:16.9]}
10. Qxc3 {[%clk 0:01:56.1]} 10... Nxf6 {[%clk 0:02:16.1]} 11. Bc4 {[%clk
0:01:34.8]} 11... e6 {[%clk 0:02:07.7]} 12. O-O-O {[%clk 0:01:19.7]} 12... Nd5
{[%clk 0:02:05.8]} 13. Qb3 {[%clk 0:01:08.3]} 13... Qd7 {[%clk 0:01:57.6]} 14.
Bd2 {[%clk 0:01:05.8]} 14... Be7 {[%clk 0:01:56.2]} 15. Qd3 {[%clk 0:00:51]}
15... O-O {[%clk 0:01:50.8]} 16. Qe2 {[%clk 0:00:51.2]} 16... Rfb8 {[%clk
0:01:46]} 17. Bd3 {[%clk 0:00:48.9]} 17... Bf6 {[%clk 0:01:39.8]} 18. c4 {[%clk
0:00:47.8]} 18... Ne7 {[%clk 0:01:38.5]} 19. Bg5 {[%clk 0:00:43.3]} 19... Bxg5+
{[%clk 0:01:19.2]} 20. Nxg5 {[%clk 0:00:44.2]} 20... h6 {[%clk 0:01:19.4]} 21.
Ne4 {[%clk 0:00:33.4]} 21... Nf5 {[%clk 0:01:16.4]} 22. Bb1 {[%clk 0:00:25.5]}
22... Ba6 {[%clk 0:01:16.4]} 23. g4 {[%clk 0:00:20.3]} 23... Nh4 {[%clk
0:01:14.8]} 24. Qc2 {[%clk 0:00:20.2]} 24... f5 {[%clk 0:01:06.4]} 25. Ng3
{[%clk 0:00:18]} 25... Rf8 {[%clk 0:00:58.3]} 26. gxf5 {[%clk 0:00:17.5]} 26...
Nxf5 {[%clk 0:00:57.9]} 27. Nxf5 {[%clk 0:00:17.6]} 27... exf5 {[%clk
0:00:57.4]} 28. c5 {[%clk 0:00:16.4]} 28... d5 {[%clk 0:00:56.1]} 29. Qd2 {[%clk
0:00:12.9]} 29... Bc4 {[%clk 0:00:26.1]} 30. Rde1 {[%clk 0:00:12.2]} 30... Rab8
{[%clk 0:00:26.4]} 31. Rhg1 {[%clk 0:00:11.8]} 31... Rf7 {[%clk 0:00:26.2]} 32.
Qxh6 {[%clk 0:00:11.1]} 32... Qb7 {[%clk 0:00:21.2]} 33. Qd2 {[%clk 0:00:11.3]}
33... Qb3 {[%clk 0:00:20.7]} 34. Rg3 {[%clk 0:00:11.3]} 34... Rfb7 {[%clk
0:00:20.4]} 35. Rxb3 {[%clk 0:00:11]} 35... Rxb3 {[%clk 0:00:19.2]} 36. Ba2
{[%clk 0:00:11.3]} 36... Rd3 {[%clk 0:00:17.1]} 37. Qc2 {[%clk 0:00:07.4]} 37...
Rxd4 {[%clk 0:00:10.6]} 38. Qxf5 {[%clk 0:00:05.8]} 38... Bxa2 {[%clk
0:00:08.9]} 39. Qe6+ {[%clk 0:00:06.3]} 39... Kh8 {[%clk 0:00:07.1]} 40. Re3
{[%clk 0:00:06.6]} 40... Rh4 {[%clk 0:00:06.1]} 41. Qxc6 {[%clk 0:00:06.1]}
41... Rf8 {[%clk 0:00:04.6]} 42. f3 {[%clk 0:00:05.4]} 42... d4 {[%clk 0:00:04]}
43. Rd3 {[%clk 0:00:05.3]} 43... Bc4 {[%clk 0:00:03.6]} 44. Rd2 {[%clk
0:00:05.9]} 44... Rh5 {[%clk 0:00:03.8]} 45. Rxd4 {[%clk 0:00:04.9]} 45... Be2
{[%clk 0:00:02.3]} 46. Qd6 {[%clk 0:00:04.9]} 46... Rc8 {[%clk 0:00:01.8]} 47.
c6 {[%clk 0:00:04.7]} 47... Bxf3 {[%clk 0:00:02.2]} 48. c7 {[%clk 0:00:04.9]}
48... Bg4 {[%clk 0:00:01.8]} 49. Qd8+ {[%clk 0:00:05.1]} 49... Kh7 {[%clk
0:00:02.2]} 50. Rxg4 {[%clk 0:00:05.3]} 50... Rc5+ {[%clk 0:00:03]} 51. Kd2
{[%clk 0:00:05.4]} 51... R8xc7 {[%clk 0:00:03.9]} 52. Rh4+ {[%clk 0:00:05.4]}
52... Kg6 {[%clk 0:00:04.1]} 53. Qd3+ {[%clk 0:00:06]} 53... Kf7 {[%clk
0:00:04.4]} 54. Rf4+ {[%clk 0:00:06.1]} 54... Kg8 {[%clk 0:00:04.8]} 55. Qd8+
{[%clk 0:00:06.3]} 55... Kh7 {[%clk 0:00:05.2]} 56. Qh4+ {[%clk 0:00:06.2]}
56... Kg8 {[%clk 0:00:04.9]} 57. Rd4 {[%clk 0:00:05.7]} 57... Rc2+ {[%clk
0:00:05]} 58. Kd3 {[%clk 0:00:06.1]} 58... Rc8 {[%clk 0:00:01.1]} 59. Rd8+
{[%clk 0:00:06.3]} 59... Rxd8+ {[%clk 0:00:01.6]} 60. Qxd8+ {[%clk 0:00:07.2]}
60... Kh7 {[%clk 0:00:02]} 61. Kxc2 {[%clk 0:00:08]} 1-0

[Event "*** Titled Tuesday Blitz"]
[Site "Chess.com"]
[Date "2020.04.14"]
[Round "7"]
[White "jposthuma"]
[Black "crazy_but_lazy"]
[Result "1-0"]
[WhiteElo "2583"]
[BlackElo "2404"]
[TimeControl "180+1"]
[EndTime "11:15:34 PDT"]
[Termination "jposthuma won by checkmate"]

1. d4 {[%clk 0:03:00.9]} 1... Nf6 {[%clk 0:02:58.1]} 2. c4 {[%clk 0:03:00.9]}
2... e6 {[%clk 0:02:55.9]} 3. g3 {[%clk 0:03:01]} 3... c5 {[%clk 0:02:52.3]} 4.
Nf3 {[%clk 0:03:00.9]} 4... cxd4 {[%clk 0:02:45.9]} 5. Nxd4 {[%clk 0:03:01.8]}
5... Nc6 {[%clk 0:02:46.4]} 6. Bg2 {[%clk 0:03:01.4]} 6... Qb6 {[%clk
0:02:46.6]} 7. Nb3 {[%clk 0:02:39.5]} 7... Bb4+ {[%clk 0:02:42.8]} 8. Bd2 {[%clk
0:02:30.7]} 8... O-O {[%clk 0:02:31.6]} 9. O-O {[%clk 0:02:30.1]} 9... d5 {[%clk
0:02:22.6]} 10. Bxb4 {[%clk 0:02:14.1]} 10... Qxb4 {[%clk 0:02:17.8]} 11. cxd5
{[%clk 0:02:09.9]} 11... exd5 {[%clk 0:02:03.9]} 12. Nc3 {[%clk 0:01:58.8]}
12... Be6 {[%clk 0:01:40]} 13. e3 {[%clk 0:01:30.9]} 13... Rfd8 {[%clk
0:01:37.7]} 14. Ne2 {[%clk 0:01:30.9]} 14... Bg4 {[%clk 0:01:13]} 15. Qe1 {[%clk
0:01:11.2]} 15... Bxe2 {[%clk 0:00:54.9]} 16. Qxe2 {[%clk 0:01:09.1]} 16... d4
{[%clk 0:00:45.3]} 17. Bxc6 {[%clk 0:01:05.5]} 17... d3 {[%clk 0:00:45.8]} 18.
Qd2 {[%clk 0:00:47.9]} 18... Qxd2 {[%clk 0:00:41.2]} 19. Nxd2 {[%clk 0:00:48.8]}
19... bxc6 {[%clk 0:00:42.1]} 20. Rac1 {[%clk 0:00:48.5]} 20... Rab8 {[%clk
0:00:36.8]} 21. b3 {[%clk 0:00:48.4]} 21... Rb6 {[%clk 0:00:36.9]} 22. Rc3
{[%clk 0:00:46.2]} 22... g6 {[%clk 0:00:28]} 23. Rd1 {[%clk 0:00:40.3]} 23...
Ng4 {[%clk 0:00:19.2]} 24. Nc4 {[%clk 0:00:36.5]} 24... Ra6 {[%clk 0:00:13.8]}
25. a4 {[%clk 0:00:35.8]} 25... c5 {[%clk 0:00:12.7]} 26. Rcxd3 {[%clk
0:00:33.9]} 26... Re8 {[%clk 0:00:10.4]} 27. Rd8 {[%clk 0:00:31.1]} 27... Kf8
{[%clk 0:00:05.7]} 28. R1d7 {[%clk 0:00:24]} 28... Nf6 {[%clk 0:00:03.7]} 29.
Rxe8+ {[%clk 0:00:22]} 29... Kxe8 {[%clk 0:00:04.6]} 30. Rc7 {[%clk 0:00:19.9]}
30... Ne4 {[%clk 0:00:05.2]} 31. f3 {[%clk 0:00:18.4]} 31... Nc3 {[%clk
0:00:05]} 32. Rxc5 {[%clk 0:00:17.3]} 32... Re6 {[%clk 0:00:04.9]} 33. e4 {[%clk
0:00:16.4]} 33... Ne2+ {[%clk 0:00:04.4]} 34. Kf2 {[%clk 0:00:16]} 34... Nd4
{[%clk 0:00:05]} 35. b4 {[%clk 0:00:15.4]} 35... Nb3 {[%clk 0:00:04.4]} 36. Re5
{[%clk 0:00:15]} 36... Kd7 {[%clk 0:00:03.8]} 37. Rxe6 {[%clk 0:00:14.3]} 37...
Kxe6 {[%clk 0:00:04.7]} 38. Ke3 {[%clk 0:00:14.8]} 38... f5 {[%clk 0:00:04.7]}
39. b5 {[%clk 0:00:12.6]} 39... Nc5 {[%clk 0:00:03.3]} 40. a5 {[%clk 0:00:11.9]}
40... Nd7 {[%clk 0:00:03.4]} 41. b6 {[%clk 0:00:11.6]} 41... axb6 {[%clk
0:00:04.3]} 42. axb6 {[%clk 0:00:10.5]} 42... Nb8 {[%clk 0:00:04.3]} 43. Na5
{[%clk 0:00:09.4]} 43... Kd6 {[%clk 0:00:03.9]} 44. exf5 {[%clk 0:00:08.7]}
44... gxf5 {[%clk 0:00:04.8]} 45. Kf4 {[%clk 0:00:09.1]} 45... Kc5 {[%clk
0:00:05.7]} 46. Kxf5 {[%clk 0:00:09]} 46... Kxb6 {[%clk 0:00:06]} 47. Nc4+
{[%clk 0:00:09.5]} 47... Kc5 {[%clk 0:00:06.6]} 48. Ne5 {[%clk 0:00:09.4]} 48...
Kd5 {[%clk 0:00:07.1]} 49. f4 {[%clk 0:00:09.8]} 49... Na6 {[%clk 0:00:07.5]}
50. Kg5 {[%clk 0:00:09]} 50... Ke6 {[%clk 0:00:07.7]} 51. Kh6 {[%clk 0:00:09]}
51... Nc5 {[%clk 0:00:08.5]} 52. Kxh7 {[%clk 0:00:09.2]} 52... Ne4 {[%clk
0:00:09.4]} 53. Kg6 {[%clk 0:00:08.5]} 53... Nf2 {[%clk 0:00:09.3]} 54. Kg5
{[%clk 0:00:06.3]} 54... Ne4+ {[%clk 0:00:09.2]} 55. Kg4 {[%clk 0:00:06.7]}
55... Nf2+ {[%clk 0:00:09.1]} 56. Kf3 {[%clk 0:00:06.8]} 56... Nd1 {[%clk
0:00:10]} 57. h3 {[%clk 0:00:06.9]} 57... Nc3 {[%clk 0:00:09.9]} 58. g4 {[%clk
0:00:07.4]} 58... Nd5 {[%clk 0:00:10.3]} 59. Ke4 {[%clk 0:00:07.6]} 59... Nf6+
{[%clk 0:00:10.4]} 60. Kf3 {[%clk 0:00:08.1]} 60... Nd5 {[%clk 0:00:11]} 61. Nd3
{[%clk 0:00:08.3]} 61... Nc3 {[%clk 0:00:10.6]} 62. f5+ {[%clk 0:00:08.2]} 62...
Kf6 {[%clk 0:00:10.9]} 63. h4 {[%clk 0:00:08.1]} 63... Nd5 {[%clk 0:00:11.4]}
64. Nf4 {[%clk 0:00:07.7]} 64... Nc7 {[%clk 0:00:10.3]} 65. Ke4 {[%clk
0:00:07.9]} 65... Na6 {[%clk 0:00:09.9]} 66. g5+ {[%clk 0:00:08.2]} 66... Kf7
{[%clk 0:00:10.4]} 67. f6 {[%clk 0:00:08.4]} 67... Nc5+ {[%clk 0:00:10.8]} 68.
Kf5 {[%clk 0:00:08.5]} 68... Nb3 {[%clk 0:00:10.3]} 69. g6+ {[%clk 0:00:08.9]}
69... Kg8 {[%clk 0:00:10.8]} 70. f7+ {[%clk 0:00:08.3]} 70... Kg7 {[%clk
0:00:09.2]} 71. Ne6+ {[%clk 0:00:08.4]} 71... Kh6 {[%clk 0:00:10.1]} 72. f8=Q+
{[%clk 0:00:08.5]} 72... Kh5 {[%clk 0:00:11]} 73. Qh8# {[%clk 0:00:08.6]} 1-0